[Event "European School-ch 2019"]
[Site "Mamaia"]
[Date "2019.06.06"]
[Round "7.20"]
[White "Celik, Hasan Huseyin"]
[Black "Gusev, Mikhail"]
[Result "1-0"]
[ECO "C12"]
[WhiteElo "1727"]
[BlackElo "1463"]
[Annotator "NA RC"]
[PlyCount "187"]
[EventDate "2019.05.31"]
[EventType "swiss"]
[EventCountry "ROU"]
[SourceTitle "playchess.com"]
[Source "ChessBase"]
[SourceQuality "1"]
[TimeControl "40/5400+30:1800+30"]

1. e4 {[%emt 0:00:00]} e6 {[%emt 0:00:00]} 2. d4 {[%emt 0:00:00]} d5 {[%emt 0:00:00]} 3. Nc3 {[%emt 0:00:00]} Nf6 {[%emt 0:00:00]} 4. Bg5 {[%emt 0:00:00]} Bb4 {[%emt 0:00:00]} 5. Nge2 {[%emt 0:00:00]} h6 {[%emt 0:01:24]} 6. Bxf6 {[%emt 0:00:12]} Qxf6 {[%emt 0:00:13]} 7. a3 {[%emt 0:00:02]} Bxc3+ {[%emt 0:01:05]} 8. Nxc3 {[%emt 0:00:01]} dxe4 {[%emt 0:06:49]} 9. Nxe4 {[%emt 0:00:10]} Qf4 {[%emt 0:00:11]} 10. Qe2 {[%emt 0:08:49]} O-O {[%emt 0:03:08]} 11. g3 {[%emt 0:00:14]} Qf5 {[%emt 0:00:07]} 12. Bg2 {[%emt 0:00:07]} Bd7 {[%emt 0:01:44]} 13. O-O {[%emt 0:01:08]} Bc6 {[%emt 0:00:52]} 14. Rfd1 {[%emt 0:00:35]} Nd7 {[%emt 0:01:50]} 15. c4 {[%emt 0:01:41]} Nb6 {[%emt 0:04:31]} 16. b3 {[%emt 0:02:45]} a5 {[%emt 0:03:32]} 17. Rac1 {[%emt 0:00:34]} Rad8 {[%emt 0:04:26]} 18. Nc5 {[%emt 0:03:16]} Qf6 {[%emt 0:20:03]} 19. Qe5 {[%emt 0:04:13]} Qxe5 {[%emt 0:04:04]} 20. dxe5 {[%emt 0:00:10]} a4 {[%emt 0:04:00]} 21. bxa4 {[%emt 0:10:45]} Rxd1+ {[%emt 0:01:58]} 22. Rxd1 {[%emt 0:00:10]} Nxc4 {[%emt 0:00:47]} 23. Nxb7 {[%emt 0:00:19]} Bxg2 24. Kxg2 {[%emt 0:00:04]} Nxe5 {[%emt 0:00:53]} 25. a5 {[%emt 0:02:42]} Nc4 {[%emt 0:06:23]} 26. Rc1 {[%emt 0:00:35]} Nxa3 {[%emt 0:04:41]} 27. Rxc7 {[%emt 0:00:36]} Nb5 {[%emt 0:02:29]} 28. Rc5 {[%emt 0:00:30]} Na7 {[%emt 0:00:51]} 29. Nd6 {[%emt 0:00:42]} Rd8 {[%emt 0:00:36]} 30. Nxf7 {[%emt 0:00:13]} Kxf7 {[%emt 0:00:54]} 31. Rc7+ {[%emt 0:00:04]} Kf6 {[%emt 0:00:06]} 32. Rxa7 {[%emt 0:00:05]} Rd3 {[%emt 0:00:06]} 33. Kf1 {[%emt 0:00:31]} Ra3 {[%emt 0:00:06]} 34. h3 {[%emt 0:00:17]} Ra2 {[%emt 0:00:41]} 35. Kg2 {[%emt 0:00:35]} Ra3 {[%emt 0:00:09]} 36. Ra8 {[%emt 0:00:27]} Kf7 {[%emt 0:00:28]} 37. h4 {[%emt 0:00:09]} h5 {[%emt 0:00:48]} 38. Ra7+ {[%emt 0:00:14]} Kf6 {[%emt 0:00:32]} 39. Ra8 {[%emt 0:01:11]} Kf7 {[%emt 0:00:01]} 40. a6 {[%emt 0:00:00]} g6 {[%emt 0:00:00]} 41. Kf1 {[%emt 0:01:25]} Ra2 {[%emt 0:00:35]} 42. Ke1 {[%emt 0:00:06]} Kg7 {[%emt 0:00:28]} 43. a7 {[%emt 0:00:06]} e5 {[%emt 0:02:32]} 44. Kd1 {[%emt 0:00:13]} e4 {[%emt 0:00:11]} 45. Kc1 {[%emt 0:00:19]} Kh7 {[%emt 0:00:05]} 46. Kb1 {[%emt 0:00:04]} Ra5 {[%emt 0:01:00]} 47. Kb2 {[%emt 0:00:07]} Ra6 {[%emt 0:00:21]} 48. Kb3 {[%emt 0:00:09]} Ra5 {[%emt 0:00:04]} 49. Kb4 {[%emt 0:00:07]} Ra1 {[%emt 0:00:08]} 50. Kc5 {[%emt 0:00:07]} Ra2 {[%emt 0:00:22]} 51. Kd5 {[%emt 0:00:13]} Ra4 {[%emt 0:00:17]} 52. Ke6 {[%emt 0:00:36]} Ra6+ {[%emt 0:02:03]} 53. Ke5 {[%emt 0:02:14]} Ra4 {[%emt 0:00:06]} 54. Kf4 {[%emt 0:00:10]} Kg7 {[%emt 0:00:32]} 55. Ke5 {[%emt 0:00:39]} Kh7 56. Kf6 {[%emt 0:00:04]} Ra6+ {[%emt 0:00:39]} 57. Kg5 {[%emt 0:00:06]} Ra5+ {[%emt 0:00:23]} 58. Kf4 {[%emt 0:00:07]} Ra4 {[%emt 0:00:04]} 59. Re8 {[%emt 0:00:34]} Rxa7 {[%emt 0:00:29]} 60. Rxe4 {[%emt 0:00:10]} Rf7+ {[%emt 0:01:37]} 61. Ke3 {[%emt 0:00:15]} Rf5 {[%emt 0:02:22]} 62. Rf4 {[%emt 0:00:20]} Re5+ {[%emt 0:00:10]} 63. Kd4 {[%emt 0:00:09]} Ra5 {[%emt 0:00:12]} 64. Kc4 {[%emt 0:00:35]} g5 {[%emt 0:01:11]} 65. hxg5 {[%emt 0:00:17]} Rxg5 {[%emt 0:01:08]} 66. Kd4 {[%emt 0:00:24]} Kg6 {[%emt 0:00:08]} 67. Rh4 {[%emt 0:00:11]} Ra5 {[%emt 0:01:21]} 68. Ke3 {[%emt 0:00:05]} Ra3+ {[%emt 0:00:24]} 69. Ke2 {[%emt 0:00:06]} Ra2+ {[%emt 0:01:25]} 70. Kf3 {[%emt 0:00:07]} Kg5 {[%emt 0:00:28]} 71. Rb4 {[%emt 0:00:09]} Ra3+ {[%emt 0:00:50]} 72. Kg2 {[%emt 0:00:05]} Ra2 {[%emt 0:00:14]} 73. Rb8 {[%emt 0:00:43]} Rc2 {[%emt 0:00:30]} 74. Ra8 {[%emt 0:00:08]} Rb2 {[%emt 0:00:05]} 75. Rg8+ {[%emt 0:00:07]} Kf5 {[%emt 0:00:25]} 76. Kh3 {[%emt 0:00:12]} Ke4 {[%emt 0:00:28]} 77. Rf8 {[%emt 0:00:15]} Rb1 {[%emt 0:00:43]} 78. Kh4 {[%emt 0:00:05]} Rh1+ {[%emt 0:00:01]} 79. Kg5 {[%emt 0:00:01]} Rh2 {[%emt 0:00:40]} 80. Rf4+ {[%emt 0:00:09]} Ke5 {[%emt 0:01:03]} 81. f3 {[%emt 0:01:09]} Rh3 {[%emt 0:01:00]} 82. g4 {[%emt 0:00:36]} hxg4 {[%emt 0:00:19]} 83. fxg4 {[%emt 0:00:03]} Rh8 {[%emt 0:00:26]} 84. Rf6 {[%emt 0:00:11]} Rh1 {[%emt 0:01:23]} 85. Rf2 {[%emt 0:00:15]} Rh8 {[%emt 0:01:36]} 86. Re2+ {[%emt 0:00:09]} Kd6 {[%emt 0:00:37]} 87. Kf6 {[%emt 0:00:11]} Rh1 {[%emt 0:02:23]} 88. g5 {[%emt 0:00:08]} Rf1+ {[%emt 0:00:01]} 89. Kg7 {[%emt 0:00:05]} Rg1 {[%emt 0:00:20]} 90. g6 {[%emt 0:00:04]} Rh1 {[%emt 0:00:07]} 91. Kf7 {[%emt 0:00:04]} Rf1+ {[%emt 0:00:14]} 92. Kg8 {[%emt 0:00:04]} Kd7 {[%emt 0:01:19]} 93. g7 {[%emt 0:00:14]} Kd6 {[%emt 0:00:41]} 94. Rh2 {[%emt 0:00:10]} 1-0

[Event "European School-ch 2019"]
[Site "Mamaia"]
[Date "2019.06.06"]
[Round "7.21"]
[White "Krawczyk, Flawian"]
[Black "Durak, Can"]
[Result "0-1"]
[ECO "B31"]
[WhiteElo "1795"]
[BlackElo "1646"]
[Annotator "NA RC"]
[PlyCount "126"]
[EventDate "2019.05.31"]
[EventType "swiss"]
[EventCountry "ROU"]
[SourceTitle "playchess.com"]
[Source "ChessBase"]
[SourceQuality "1"]
[TimeControl "40/5400+30:1800+30"]

1. e4 {[%emt 0:00:00]} c5 {[%emt 0:00:00]} 2. Nf3 {[%emt 0:00:13]} Nc6 {[%emt 0:00:14]} 3. Bb5 {[%emt 0:00:51]} g6 {[%emt 0:01:32]} 4. Bxc6 {[%emt 0:00:39]} dxc6 {[%emt 0:00:41]} 5. d3 {[%emt 0:00:05]} Bg7 {[%emt 0:00:30]} 6. h3 {[%emt 0:00:04]} Nf6 {[%emt 0:00:52]} 7. Nc3 {[%emt 0:00:11]} e5 {[%emt 0:00:53]} 8. Be3 {[%emt 0:01:52]} Nd7 {[%emt 0:00:29]} 9. Qd2 {[%emt 0:02:18]} h6 {[%emt 0:00:51]} 10. O-O {[%emt 0:01:23]} b6 {[%emt 0:00:49]} 11. a3 {[%emt 0:01:02]} Nf8 {[%emt 0:00:52]} 12. b4 {[%emt 0:02:18]} Ne6 {[%emt 0:01:06]} 13. bxc5 {[%emt 0:01:12]} f5 {[%emt 0:01:39]} 14. exf5 {[%emt 0:03:23]} gxf5 {[%emt 0:00:11]} 15. Qe1 {[%emt 0:00:33]} bxc5 {[%emt 0:03:36]} 16. Rd1 {[%emt 0:04:01]} O-O {[%emt 0:04:23]} 17. Na4 {[%emt 0:03:31]} Qd6 {[%emt 0:01:52]} 18. Qa5 {[%emt 0:00:49]} Nd4 {[%emt 0:02:23]} 19. Nxd4 {[%emt 0:01:03]} cxd4 {[%emt 0:00:35]} 20. Bd2 {[%emt 0:00:12]} f4 {[%emt 0:06:53]} 21. f3 {[%emt 0:14:33]} Qg6 {[%emt 0:02:42]} 22. Kh1 {[%emt 0:01:05]} Bxh3 {[%emt 0:02:00]} 23. Rf2 {[%emt 0:03:58]} Be6 {[%emt 0:03:40]} 24. Nc5 {[%emt 0:00:44]} Bd5 {[%emt 0:03:00]} 25. Ne4 {[%emt 0:01:30]} Bxe4 {[%emt 0:00:33]} 26. dxe4 {[%emt 0:00:17]} Bf6 {[%emt 0:00:53]} 27. Be1 {[%emt 0:03:43]} Qh5+ {[%emt 0:00:16]} 28. Kg1 {[%emt 0:00:07]} Bh4 {[%emt 0:00:19]} 29. Rxd4 {[%emt 0:02:31]} Bxf2+ {[%emt 0:05:58]} 30. Bxf2 {[%emt 0:00:07]} Rab8 {[%emt 0:03:53]} 31. Rd1 {[%emt 0:01:03]} Rf7 {[%emt 0:02:11]} 32. Bxa7 {[%emt 0:02:18]} Ra8 {[%emt 0:00:47]} 33. Rd8+ {[%emt 0:00:09]} Rxd8 {[%emt 0:00:05]} 34. Qxd8+ {[%emt 0:00:11]} Kg7 {[%emt 0:09:53]} 35. Bb6 {[%emt 0:04:02]} Qg5 {[%emt 0:04:07]} 36. Qd6 {[%emt 0:05:25]} Qf6 {[%emt 0:00:38]} 37. Qd1 {[%emt 0:04:37]} Rb7 {[%emt 0:03:47]} 38. Bc5 {[%emt 0:02:27]} Qe6 {[%emt 0:02:27]} 39. Bb4 {[%emt 0:05:52]} Rd7 {[%emt 0:05:02]} 40. Qe2 {[%emt 0:00:00]} h5 {[%emt 0:00:00]} 41. a4 {[%emt 0:07:17]} Qa2 {[%emt 0:03:17]} 42. a5 {[%emt 0:01:02]} Qa1+ {[%emt 0:02:08]} 43. Be1 {[%emt 0:00:23]} Qd1 {[%emt 0:02:03]} 44. Qf2 {[%emt 0:01:10]} Qd4 {[%emt 0:01:56]} 45. a6 {[%emt 0:00:43]} Qxf2+ {[%emt 0:01:13]} 46. Bxf2 {[%emt 0:00:08]} Rd1+ {[%emt 0:00:03]} 47. Kh2 {[%emt 0:00:04]} Ra1 {[%emt 0:00:05]} 48. a7 {[%emt 0:00:03]} Kf6 {[%emt 0:00:30]} 49. Bb6 {[%emt 0:01:16]} Ke6 {[%emt 0:02:52]} 50. g3 {[%emt 0:02:20]} Kd6 {[%emt 0:00:42]} 51. gxf4 {[%emt 0:01:12]} exf4 {[%emt 0:00:18]} 52. Bd4 {[%emt 0:00:21]} Ra2 {[%emt 0:00:37]} 53. Kh3 {[%emt 0:00:40]} c5 {[%emt 0:00:29]} 54. Bg7 {[%emt 0:00:34]} Rxa7 {[%emt 0:00:47]} 55. Bh6 {[%emt 0:01:00]} Ra2 {[%emt 0:00:48]} 56. Bxf4+ Ke6 {[%emt 0:00:13]} 57. Bb8 {[%emt 0:03:32]} Rxc2 {[%emt 0:00:42]} 58. f4 {[%emt 0:00:43]} c4 {[%emt 0:01:29]} 59. f5+ {[%emt 0:00:20]} Kf6 {[%emt 0:00:11]} 60. Kg3 {[%emt 0:01:34]} c3 {[%emt 0:00:27]} 61. Ba7 {[%emt 0:00:41]} Rd2 {[%emt 0:00:43]} 62. Kf4 {[%emt 0:00:46]} c2 {[%emt 0:00:21]} 63. e5+ {[%emt 0:00:15]} Kf7 {[%emt 0:00:29]} 0-1

[Event "European School-ch 2019"]
[Site "Mamaia"]
[Date "2019.06.06"]
[Round "7.22"]
[White "Cnejev, Vladimir-Alexandru"]
[Black "Nemsadze, Daviti"]
[Result "1-0"]
[ECO "B30"]
[WhiteElo "1970"]
[BlackElo "1803"]
[Annotator "NA RC"]
[PlyCount "73"]
[EventDate "2019.05.31"]
[EventType "swiss"]
[EventCountry "ROU"]
[SourceTitle "playchess.com"]
[Source "ChessBase"]
[SourceQuality "1"]
[TimeControl "40/5400+30:1800+30"]

1. e4 {[%emt 0:00:00]} c5 {[%emt 0:00:00]} 2. Nf3 {[%emt 0:00:00]} Nc6 {[%emt 0:00:00]} 3. c3 {[%emt 0:00:00]} Nf6 {[%emt 0:00:00]} 4. e5 {[%emt 0:00:03]} Nd5 {[%emt 0:00:00]} 5. d4 {[%emt 0:00:18]} cxd4 {[%emt 0:00:00]} 6. cxd4 {[%emt 0:00:05]} d6 {[%emt 0:00:00]} 7. Bc4 {[%emt 0:00:30]} Nb6 {[%emt 0:04:28]} 8. Bb5 {[%emt 0:02:10]} Bd7 {[%emt 0:08:13]} 9. Nc3 {[%emt 0:06:35]} a6 {[%emt 0:15:28]} 10. Bxc6 {[%emt 0:04:00]} bxc6 {[%emt 0:08:09]} 11. O-O {[%emt 0:34:40]} d5 {[%emt 0:00:56]} 12. Be3 {[%emt 0:14:40]} e6 {[%emt 0:05:52]} 13. Ne1 $14 {[%emt 0:02:49]} Be7 {[%emt 0:32:38]} 14. Nd3 {[%emt 0:00:49]} O-O {[%emt 0:01:29]} 15. b3 {[%emt 0:02:01]} a5 {[%emt 0:01:26]} 16. a4 {[%emt 0:01:53]} Bc8 {[%emt 0:00:06]} 17. Rc1 {[%emt 0:03:25]} Ba6 {[%emt 0:00:46]} 18. Ne2 {[%emt 0:01:27]} Qc7 {[%emt 0:06:25]} 19. Re1 {[%emt 0:16:02]} Nd7 {[%emt 0:00:51]} 20. f4 {[%emt 0:02:06]} Bxd3 {[%emt 0:05:51]} 21. Qxd3 {[%emt 0:00:01]} Qb6 {[%emt 0:00:23]} 22. f5 {[%emt 0:06:11]} Rab8 {[%emt 0:00:17]} 23. Nf4 {[%emt 0:01:07]} c5 {[%emt 0:01:52]} 24. fxe6 {[%emt 0:00:36]} fxe6 {[%emt 0:00:03]} 25. g3 {[%emt 0:00:23]} Rfc8 {[%emt 0:03:24]} 26. Kg2 {[%emt 0:00:34]} Rc6 {[%emt 0:03:17]} 27. Rc3 {[%emt 0:00:21]} Rbc8 {[%emt 0:00:26]} 28. Rec1 {[%emt 0:00:18]} Qb4 {[%emt 0:00:28]} 29. dxc5 {[%emt 0:00:52]} Nxe5 {[%emt 0:00:41]} 30. Qd4 {[%emt 0:00:15]} Ng4 {[%emt 0:00:19]} 31. Nd3 {[%emt 0:00:48]} Nxe3+ {[%emt 0:00:42]} 32. Qxe3 {[%emt 0:00:01]} Qb8 {[%emt 0:00:38]} 33. Ne5 {[%emt 0:00:55]} Rxc5 {[%emt 0:00:48]} 34. Rxc5 {[%emt 0:00:34]} Bxc5 {[%emt 0:00:33]} 35. Qe2 {[%emt 0:00:22]} Bd6 {[%emt 0:00:25]} 36. Nd7 {[%emt 0:00:29]} Qb7 {[%emt 0:00:08]} 37. Qxe6+ {[%emt 0:00:07]} 1-0

[Event "European School-ch 2019"]
[Site "Mamaia"]
[Date "2019.06.06"]
[Round "7.23"]
[White "Magold, Filip"]
[Black "Warchol, Kamil"]
[Result "1-0"]
[ECO "C77"]
[WhiteElo "1906"]
[BlackElo "1639"]
[Annotator "NA RC"]
[PlyCount "145"]
[EventDate "2019.05.31"]
[EventType "swiss"]
[EventCountry "ROU"]
[SourceTitle "playchess.com"]
[Source "ChessBase"]
[SourceQuality "1"]
[TimeControl "40/5400+30:1800+30"]

1. e4 {[%emt 0:00:00]} e5 {[%emt 0:00:00]} 2. Nf3 {[%emt 0:00:00]} Nc6 {[%emt 0:00:23]} 3. Bb5 {[%emt 0:00:00]} a6 {[%emt 0:00:19]} 4. Ba4 {[%emt 0:00:00]} Nf6 {[%emt 0:00:59]} 5. d3 {[%emt 0:00:36]} b5 {[%emt 0:01:51]} 6. Bb3 {[%emt 0:00:06]} Be7 {[%emt 0:03:11]} 7. Nc3 {[%emt 0:00:20]} d6 {[%emt 0:01:39]} 8. O-O {[%emt 0:01:17]} O-O {[%emt 0:01:54]} 9. a4 {[%emt 0:00:36]} b4 {[%emt 0:01:44] C84: Closed Ruy Lopez: Unusual White 6th moves} (9... Bg4 10. Be3 Nd4 11. Bxd4 exd4 12. Nd5 c6 13. h3 Bxf3 14. Nxf6+ Bxf6 15. Qxf3 Rc8 16. axb5 axb5 17. Ra6 {½-½ (71) Inarkiev,E (2682)-Ragger,M (2632) Dubai 2014}) 10. Nd5 {[%emt 0:00:41]} a5 {[%emt 0:06:55]} 11. h3 {[%emt 0:01:05]} Ba6 $146 {[%emt 0:05:41]} ({Predecessor:} 11... h6 12. c3 Be6 13. Bd2 Rb8 14. cxb4 Bxd5 15. exd5 Nxb4 {0-1 (57) Dwilewicz,A (1813)-Krzysztynska,A (1643) Szklarska Poreba 2016}) 12. Re1 {[%emt 0:00:39]} Kh8 {[%emt 0:02:27]} 13. Be3 {[%emt 0:22:28]} Qd7 {[%emt 0:12:56]} 14. Nh2 {[%emt 0:11:20]} Nd8 {[%emt 0:06:34]} 15. f4 {[%emt 0:09:14]} Nxd5 {[%emt 0:03:32]} 16. exd5 {[%emt 0:02:03]} exf4 {[%emt 0:07:34]} 17. Bxf4 {[%emt 0:00:13]} Bf6 {[%emt 0:01:30]} 18. Rb1 {[%emt 0:00:52]} Nb7 {[%emt 0:02:22]} 19. d4 $11 {[%emt 0:01:33]} Qf5 {[%emt 0:04:55]} 20. Qd2 {[%emt 0:02:21]} Rae8 {[%emt 0:02:21]} 21. Nf3 {[%emt 0:04:13]} Nd8 {[%emt 0:04:35]} 22. Bg3 {[%emt 0:05:24]} Bb7 {[%emt 0:02:54]} 23. Qf4 {[%emt 0:01:52]} Qh5 {[%emt 0:02:40]} 24. Qg4 {[%emt 0:00:48]} Qxg4 {[%emt 0:01:37]} 25. hxg4 {[%emt 0:02:12]} h6 {[%emt 0:01:33]} 26. Rbc1 {[%emt 0:01:21]} Bc8 {[%emt 0:00:51]} 27. c3 {[%emt 0:04:40]} Bxg4 {[%emt 0:02:59]} 28. Kf2 {[%emt 0:00:47]} bxc3 {[%emt 0:01:31]} 29. bxc3 {[%emt 0:00:07]} Bf5 {[%emt 0:02:49]} 30. Bc2 {[%emt 0:02:48]} Bc8 {[%emt 0:03:29]} 31. Rb1 {[%emt 0:04:32]} Rxe1 {[%emt 0:00:35]} 32. Nxe1 {[%emt 0:00:07]} g5 {[%emt 0:00:44]} 33. Rb8 {[%emt 0:00:17]} Bb7 {[%emt 0:00:21]} 34. Bb3 {[%emt 0:00:46]} Re8 {[%emt 0:01:09]} 35. Bc4 {[%emt 0:01:01]} h5 {[%emt 0:00:58]} 36. Nc2 {[%emt 0:02:59]} h4 {[%emt 0:05:22]} 37. Bh2 {[%emt 0:00:16]} g4 {[%emt 0:00:36]} 38. Bf4 {[%emt 0:00:13]} Re4 {[%emt 0:02:05]} 39. g3 {[%emt 0:01:23]} h3 {[%emt 0:02:39]} 40. Ne3 {[%emt 0:00:00]} Kg7 {[%emt 0:00:00]} 41. Nxg4 {[%emt 0:00:58]} h2 {[%emt 0:16:36]} 42. Nxh2 {[%emt 0:00:37]} Re8 {[%emt 0:00:42]} 43. Ng4 {[%emt 0:00:41]} Be7 {[%emt 0:00:42]} 44. Ne3 {[%emt 0:00:06]} Rh8 {[%emt 0:00:58]} 45. Kg1 {[%emt 0:00:33]} Rh5 {[%emt 0:01:23]} 46. g4 {[%emt 0:01:10]} Rh8 {[%emt 0:01:13]} 47. g5 {[%emt 0:00:27]} Rh5 {[%emt 0:01:09]} 48. Be2 {[%emt 0:00:36]} Rh8 {[%emt 0:00:36]} 49. Nf5+ {[%emt 0:00:11]} Kf8 {[%emt 0:00:13]} 50. g6 {[%emt 0:01:17]} Rg8 {[%emt 0:00:53]} 51. g7+ {[%emt 0:00:04]} Rxg7+ {[%emt 0:00:19]} 52. Nxg7 {[%emt 0:00:04]} Kxg7 {[%emt 0:00:03]} 53. c4 {[%emt 0:00:51]} Kg6 {[%emt 0:03:11]} 54. Bd2 {[%emt 0:00:15]} Bf6 {[%emt 0:00:28]} 55. Kf1 {[%emt 0:00:09]} c6 {[%emt 0:00:37]} 56. Bxa5 {[%emt 0:00:06]} cxd5 {[%emt 0:00:26]} 57. Bxd8 {[%emt 0:00:06]} Bxd8 {[%emt 0:00:06]} 58. Rxd8 {[%emt 0:00:06]} dxc4 {[%emt 0:00:36]} 59. Rxd6+ {[%emt 0:00:06]} f6 {[%emt 0:00:13]} 60. Bxc4 {[%emt 0:00:04]} Kf5 {[%emt 0:00:28]} 61. a5 {[%emt 0:00:43]} Ke4 {[%emt 0:00:16]} 62. a6 {[%emt 0:00:17]} Ba8 {[%emt 0:00:06]} 63. a7 {[%emt 0:00:05]} f5 {[%emt 0:00:04]} 64. Bd5+ {[%emt 0:00:04]} Bxd5 {[%emt 0:00:14]} 65. Rxd5 {[%emt 0:00:04]} Kxd5 {[%emt 0:00:09]} 66. a8=Q+ {[%emt 0:00:05]} Kxd4 {[%emt 0:00:03]} 67. Ke2 {[%emt 0:00:06]} f4 {[%emt 0:00:07]} 68. Qc6 {[%emt 0:00:04]} Ke5 {[%emt 0:00:05]} 69. Kf3 {[%emt 0:00:02]} Kf5 {[%emt 0:00:03]} 70. Qd6 {[%emt 0:00:04]} Kg5 {[%emt 0:00:05]} 71. Qe6 {[%emt 0:00:07]} Kh5 {[%emt 0:00:13]} 72. Kxf4 {[%emt 0:00:06]} Kh4 {[%emt 0:00:03]} 73. Qg4# {[%emt 0:00:05]} 1-0

[Event "European School-ch 2019"]
[Site "Mamaia"]
[Date "2019.06.06"]
[Round "7.24"]
[White "Butolo, Alexandru-Mircea"]
[Black "Ciocani, Iosif"]
[Result "1/2-1/2"]
[ECO "C20"]
[WhiteElo "1553"]
[BlackElo "1740"]
[Annotator "NA RC"]
[PlyCount "33"]
[EventDate "2019.05.31"]
[EventType "swiss"]
[EventCountry "ROU"]
[SourceTitle "playchess.com"]
[Source "ChessBase"]
[SourceQuality "1"]
[TimeControl "40/5400+30:1800+30"]

1. e4 {[%emt 0:00:02]} e5 {[%emt 0:00:00]} 2. c4 {[%emt 0:00:52]} c5 {[%emt 0:07:42]} 3. Nc3 {[%emt 0:00:46]} g6 {[%emt 0:00:33]} 4. g3 {[%emt 0:00:16]} Bg7 {[%emt 0:00:07]} 5. Bg2 {[%emt 0:00:23]} Ne7 {[%emt 0:00:31]} 6. d3 {[%emt 0:00:23]} O-O {[%emt 0:00:29]} 7. f4 {[%emt 0:00:21]} d6 {[%emt 0:01:20]} 8. Nf3 {[%emt 0:00:24]} Nbc6 {[%emt 0:00:52]} 9. O-O {[%emt 0:02:01]} Bg4 {[%emt 0:00:46]} 10. h3 {[%emt 0:02:05]} Bxf3 {[%emt 0:00:17]} 11. Qxf3 {[%emt 0:00:47]} Nd4 {[%emt 0:00:42]} 12. Qf2 {[%emt 0:00:11]} f5 {[%emt 0:05:01]} 13. Be3 {[%emt 0:04:34]} Nec6 {[%emt 0:03:40]} 14. Qd2 {[%emt 0:05:30]} Qd7 {[%emt 0:02:59]} 15. Ne2 {[%emt 0:07:32]} Rae8 {[%emt 0:04:09]} 16. Bxd4 {[%emt 0:01:18]} exd4 {[%emt 0:12:25]} 17. Rae1 1/2-1/2

[Event "European School-ch 2019"]
[Site "Mamaia"]
[Date "2019.06.06"]
[Round "7.25"]
[White "Gabulov, Ilkin"]
[Black "Zhelev, Nikolay"]
[Result "1-0"]
[ECO "D44"]
[WhiteElo "1288"]
[BlackElo "1710"]
[Annotator "NA RC"]
[PlyCount "65"]
[EventDate "2019.05.31"]
[EventType "swiss"]
[EventCountry "ROU"]
[SourceTitle "playchess.com"]
[Source "ChessBase"]
[SourceQuality "1"]
[TimeControl "40/5400+30:1800+30"]

1. d4 {[%emt 0:00:00]} d5 {[%emt 0:00:00]} 2. c4 {[%emt 0:00:06]} c6 {[%emt 0:00:00]} 3. Nc3 {[%emt 0:00:41]} Nf6 {[%emt 0:00:14]} 4. Nf3 {[%emt 0:01:42]} e6 {[%emt 0:00:27]} 5. Bg5 {[%emt 0:00:24]} dxc4 {[%emt 0:05:20]} 6. a4 {[%emt 0:06:35]} Be7 {[%emt 0:14:05]} 7. e4 {[%emt 0:09:37]} Nbd7 {[%emt 0:06:57]} 8. Bxc4 {[%emt 0:02:56]} O-O {[%emt 0:04:24]} 9. O-O {[%emt 0:02:03]} b6 {[%emt 0:05:53]} 10. Re1 {[%emt 0:09:36]} Bb7 {[%emt 0:15:05]} 11. Rc1 {[%emt 0:08:26]} a6 {[%emt 0:10:50]} 12. Qc2 {[%emt 0:16:12]} c5 {[%emt 0:09:53]} 13. d5 {[%emt 0:04:31]} e5 {[%emt 0:01:22]} 14. Rcd1 {[%emt 0:01:30]} Bd6 {[%emt 0:00:44]} 15. Nh4 {[%emt 0:02:44]} Re8 {[%emt 0:05:08]} 16. Nf5 {[%emt 0:00:38]} Nf8 {[%emt 0:01:05]} 17. Ne2 {[%emt 0:01:04]} Ng6 {[%emt 0:02:53]} 18. Neg3 {[%emt 0:00:58]} Bc8 {[%emt 0:06:15]} 19. Qc1 {[%emt 0:03:19]} h6 {[%emt 0:02:56]} 20. Bxf6 {[%emt 0:00:24]} gxf6 {[%emt 0:01:41]} 21. Qxh6 {[%emt 0:01:19]} Bf8 {[%emt 0:00:09]} 22. Qc1 {[%emt 0:00:06]} Bxf5 {[%emt 0:03:18]} 23. Nxf5 {[%emt 0:00:13]} Qd7 {[%emt 0:00:20]} 24. Re3 {[%emt 0:01:38]} b5 {[%emt 0:00:41]} 25. Be2 {[%emt 0:00:37]} Nf4 {[%emt 0:01:20]} 26. Bg4 {[%emt 0:00:39]} Qd8 {[%emt 0:00:17]} 27. Rg3 {[%emt 0:01:20]} Kh7 {[%emt 0:00:39]} 28. Qe3 {[%emt 0:01:10]} bxa4 {[%emt 0:01:15]} 29. Qf3 {[%emt 0:00:44]} Rb8 {[%emt 0:00:16]} 30. Bh5 {[%emt 0:03:00]} Rxb2 {[%emt 0:00:45]} 31. Bxf7 {[%emt 0:01:34]} Rb3 {[%emt 0:00:41]} 32. Qg4 {[%emt 0:00:49]} Rxg3 {[%emt 0:00:29]} 33. Qh4+ 1-0